Workbook

Sheet CÁLCULO DE ESFORÇOS DE LINHA DE
A1: DADOS
A2: Restrição de Movimentação? | B2: Não
A3: Peso do corpo(P) + ferramentas + roupas | B3: 100 | AC3: 100
A4: Vão(L) - Distância entre apoios total | B4: 20
A5: Número de Vãos | B5: 1
A6: Vão(L) - Distância entre apoios | B6: 20
A7: Diâmetro do cabo (dc) | B7: 9.52
A8: Força de ruptura do cabo (fu) | B8: 6100
A9: Número de pessoas (n) | B9: 1
A10: Comprimento do talabarte (a) | B10: 1.4
A11: Comprimento do abs. estendido (b) | B11: 1.1
A12: Uso de trava-quedas retrátil (A1) | B12: 0.9
A13: Espaço de frenagem trava-quedas retrátil (B1) | B13: 1.9
A14: Distância posição recolhida a posição de trabalho (b1) | B14: 1
A15: CÁLCULOS
A16: Flecha (%) | B16: =IF(B2="Sim",0.01,0.03) -> 0.03
A17: Comprimento do cabo x% (L1) | B17: =(1+(0.666666*((B19/(B6*1000/2))^2)))*B6*1000 -> 20047.99995
A18: Dl alongamento cabo parabólico(ΔL) | B18: =(B36*B17)/(9500*0.396*$B$7^2) -> 132.2693606
A19: Flecha inicial parabólica (montagem) (f1) | B19: =B6*1000*B16 -> 600
A20: Flecha inicial cabo reto (f2) | B20: =SQRT((B17*0.5)^2-(B6*0.5*1000)^2) -> 693.2355436 | C20: 1 vão | D20: 1 vão +
A21: Flecha total carga dinâmica (f3) | B21: =IF(B5=1,SQRT((((B17+B18)/2)^2)-((B6*1000*0.5)^2)),SQRT((((B18*B5*0.5)+((0.5*B6*1000)))^2)-((0.5*1000*B6)^2))) -> 1345.666148 | C21: =SQRT((B17/2+B18/2)^2-(B6*1000/2)^2) -> 1345.666148 | D21: =SQRT((((B18*B5*0.5)+((0.5*B6*1000)))^2)-((0.5*1000*B6)^2)) -> 1151.984115 | E21: mm
A22: Distância de frenagem | B22: =B21-B20 -> 652.4306045
A23: Carga corpo (P) | B23: =IF(B2="Não",600+((B9-1)*B3*1.2),B9*100) -> 600
A24: Força no cabo (T1) | B24: =(B23*((B17/2)+(B18/2)))/(B21)/2 -> 2249.473542
A25: Força admissível (Fadm) do cabo tabela fabricante coef seg 2 ou mais | B25: =B8/2*0.8 -> 2440
A26: Número de pessoas (n) | B26: =B9 -> 1
A27: Hmin cabo/piso – talabarte (ZLQ1) | B27: =B10+B11+(B21/1000)+1.8+1 -> 6.645666148
A28: Hmin cabo/piso – trava-quedas (ZLQ 2 ) | B28: =B12+(B21/1000)+1.8+1 -> 5.045666148
A29: Dist. piso trab/piso abaixo p/ trava-quedas (Hp) | B29: =B21/1000-B19/1000+B13-B14+1 -> 2.645666148
A30: Coeficiente de utilização do cabo - sempre menor que 100% | B30: =B24/B25 -> 0.9219153862
A31: Fator de serviço do cabo | B31: =(B25*2)/B24 -> 2.169396487
A32: Informe o fator de queda | B32: 1
A33: Status de calibração | B33: =IF(AND(B35<1,B35>-1),"CALIBRADO","CORRIGIR") -> CALIBRADO
A34: Status resistencia do cabo de aço | B34: =IF(OR(AND(B2="Não",B31>=2),(AND(B2="Sim",B31>=3))),"APROVADO","REPROVADO") -> APROVADO
A35: VARÁVEL DE SIMULAÇÃO | B35: =B36-B24 -> -3.537938937e-07
A36: FORÇA CABO – ITERAÇÃO | B36: 2249.473542
A38: ANÁLISE SEM ABSORVEDOR
A39: Angula â | B39: =DEGREES(ATAN(C21/(B6*0.5*1000))) -> 7.664059675
A40: Força max Fx | B40: =B24*COS(RADIANS(B39)) -> 2229.37911
A41: Força max Fy | B41: =B24*SIN(RADIANS(B39)) -> 300
A42: Força max possível F angula a | B42: =B24 -> 2249.473542
A43: Mx | B43: =B40*(B50/1000) -> 557.3447776
A44: My | B44: =B41*(B50/1000) -> 75
A45: Momento máximo ângulo a | B45: =B42*(B50/1000) -> 562.3683856
E48: https://www.gulin.com.br/
A50: h = altura do ancoragem | B50: 250
A70: distancia entre centros | B70: 180
A73: Força dos parafusos *d = Momento do pilarete
A74: Fp=(Mx/d)/2 parafusos | B74: =B43*0.5/(B70/1000) -> 1548.179938
A75: Fp em cada parafuso | B75: =B74*10/1000 -> 15.48179938
A77: ANÁLISE COM ABSORVEDOR LINHA DE VIDA
A78: Força max possível F angula a | B78: 1400
A79: Momento máximo ângulo a | B79: =B78*(B50/1000) -> 350
A80: Fp em cada parafuso | B80: =B79*0.5/(B70/1000) -> 972.2222222
A81: Fp em cada parafuso | B81: =B80*10/1000 -> 9.722222222

Sheet BD
A1: Restrição de Movimentação
A2: Sim
A3: Não

Sheet FATOR DE QUEDA

Sheet CARGA RUPT CABO DE AÇO_CIMAF
